[Event "14th Karen Asrian Memorial 2024"]
[Site "Yerevan"]
[Date "2024.04.25"]
[Round "2.3"]
[White "Korshunov, Sergey And."]
[Black "Pranesh M"]
[Result "1/2-1/2"]
[ECO "C60"]
[WhiteElo "2286"]
[BlackElo "2538"]
[Annotator "TA"]
[PlyCount "47"]
[EventDate "2024.04.24"]
[EventType "swiss"]
[EventCountry "ARM"]
[SourceTitle "playchess.com"]
[Source "ChessBase"]
[SourceQuality "1"]
[TimeControl "40/5400+30:1800+30"]

{[%evp 9,47,24,30,18,21,19,28,10,10,12,13,21,26,23,18,10,36,-21,-16,-11,-9,-17,-21,-14,-20,-16,-14,-12,0,-15,0,0,12,15,28,21,22,26,23,24]} 1. e4 {[%emt 0:00:09]} e5 {[%emt 0:00:45]} 2. Nf3 {[%emt 0:00:04]} Nc6 {[%emt 0:00:05]} 3. Bb5 {[%emt 0:00:07]} a6 {[%emt 0:00:05]} 4. Ba4 {[%emt 0:00:05]} Nge7 {[%emt 0:00:11]} 5. O-O {[%emt 0:00:25]} Ng6 {[%emt 0:00:04]} 6. c3 {[%emt 0:01:28]} d5 {[%emt 0:00:45]} 7. exd5 {[%emt 0:00:07]} Qxd5 {[%emt 0:00:04]} 8. d4 {[%emt 0:05:45][%cal Oc3c4] [#] Strongly threatening c4!} Bg4 {[%emt 0:00:06]} 9. dxe5 {[%emt 0:04:24]} O-O-O {[%emt 0:02:02] White must now prevent ...Bxf3.} 10. Qxd5 {[%emt 0:00:08]} Rxd5 {[%emt 0:00:04]} 11. Bxc6 {[%emt 0:00:22]} bxc6 {[%emt 0:00:07]} 12. Nbd2 {[%emt 0:00:12]} Bc5 {[%emt 0:09:09][%cal Oh8d8]} 13. h3 {[%emt 0:16:56]} ({White should play} 13. Re1 $14) 13... Bxf3 $11 {[%emt 0:15:43]} 14. Nxf3 {[%emt 0:00:06]} Nxe5 {[%emt 0:00:47]} 15. Nxe5 {[%emt 0:02:03]} Rxe5 {[%emt 0:00:05]} 16. Be3 {[%emt 0:00:28]} Bxe3 {[%emt 0:01:24]} 17. fxe3 {[%emt 0:01:34][%mdl 4096] Endgame. KRR-KRR} f6 {[%emt 0:00:05][%cal Oh8e8]} 18. Kf2 {[%emt 0:01:03]} Rb5 {[%emt 0:06:05]} 19. b3 {[%emt 0:04:57]} Rf5+ {[%emt 0:02:16]} 20. Ke2 {[%emt 0:00:47]} Rg5 {[%emt 0:00:05]} 21. g4 {[%emt 0:03:02]} Re5 {[%emt 0:09:50]} 22. Rf5 {[%emt 0:00:47] Black should prevent Rxe5.} Re4 {[%emt 0:00:15]} 23. Rd1 {[%emt 0:01:23]} Rhe8 {[%emt 0:00:08]} 24. Rd3 {[%emt 0:00:06] An uneventful encounter.   Weighted Error Value: White=0.08 (flawless) /Black=0.05 (flawless) .  Mistake:       	White=1     	---        Inaccurate:     	---       	Black=1      OK:         	White=12    	Black=5      Best:        	---       	Black=2} 1/2-1/2

[Event "14th Karen Asrian Memorial 2024"]
[Site "Yerevan"]
[Date "2024.04.25"]
[Round "2.4"]
[White "Ohanyan, Emin"]
[Black "Hovakimyan, Vache"]
[Result "1-0"]
[ECO "D38"]
[WhiteElo "2488"]
[BlackElo "2202"]
[Annotator "TA"]
[PlyCount "91"]
[EventDate "2024.04.24"]
[EventType "swiss"]
[EventCountry "ARM"]
[SourceTitle "playchess.com"]
[Source "ChessBase"]
[SourceQuality "1"]
[TimeControl "40/5400+30:1800+30"]

{[%evp 15,91,14,27,2,59,57,35,41,51,0,37,20,58,66,55,58,93,85,237,225,326,325,352,371,361,364,344,252,231,254,250,149,131,127,404,418,435,414,454,452,454,456,452,433,421,346,362,358,530,239,522,513,520,517,497,515,697,692,652,665,1077,1060,29992,1034,999,994,985,977,940,934,912,885,1182,1179,29970,29973,29971,29969]} 1. d4 {[%emt 0:07:33]} Nf6 {[%emt 0:00:26]} 2. c4 {[%emt 0:00:08]} e6 {[%emt 0:00:20]} 3. Nf3 {[%emt 0:00:06]} d5 {[%emt 0:00:22]} 4. Nc3 {[%emt 0:00:04]} Bb4 {[%emt 0:00:47]} 5. Bg5 {[%emt 0:00:10]} h6 {[%emt 0:00:56]} 6. Bxf6 {[%emt 0:00:06]} Qxf6 {[%emt 0:00:06]} 7. e3 {[%emt 0:00:04]} O-O {[%emt 0:00:25]} 8. Rc1 {[%emt 0:00:04]} Nc6 {[%emt 0:04:51]} 9. Be2 {[%emt 0:00:42][%cal Bf1e2,Be2c4,Bc4d3,Bd3e4][%mdl 32]} Rd8 {[%emt 0:10:49]} (9... dxc4 $11 10. Bxc4 Bxc3+ 11. bxc3 b6) 10. O-O {[%emt 0:01:23]} dxc4 {[%emt 0:07:25]} 11. Bxc4 {[%emt 0:00:54] White is slightly better.} Bxc3 {[%emt 0:02:27]} 12. bxc3 {[%emt 0:13:05]} (12. Rxc3 $14 Ne7 13. Bd3) 12... Na5 {[%emt 0:16:54]} 13. Bd3 {[%emt 0:01:47]} b6 {[%emt 0:01:45]} 14. Ne5 {[%emt 0:00:39]} Bb7 {[%emt 0:09:31][%cal Bc8b7,Bb7e4,Be4f5][%mdl 32]} 15. f4 {[%emt 0:08:54][%cal Bf2f4,Bf4f5,Bf5g6,Bg6f7][%mdl 32] Against Qg5} g6 {[%emt 0:07:32] Prevents Qh5.} 16. Qg4 {[%emt 0:05:27] Hoping for f5.} Nc6 $2 {[%emt 0:08:52]} (16... Qg7 $16 {was worth a try.}) 17. Be4 $1 $18 {[%emt 0:12:41]} Na5 {[%emt 0:04:44]} (17... h5 $142 18. Qg3 Na5) 18. f5 $1 {[%emt 0:23:44][%cal Rf5g6]} Bxe4 {[%emt 0:09:17]} 19. fxg6 {[%emt 0:00:06]} Bf5 {[%emt 0:00:27][%cal Of6e5] ...Qxe5! is the strong threat.} 20. gxf7+ {[%emt 0:00:06]} Kh7 {[%emt 0:02:39][%cal Of6e5] ...Qxe5! would now be deadly.} 21. Qf4 {[%emt 0:08:04]} Qg5 {[%emt 0:04:32]} 22. e4 {[%emt 0:00:09] Strongly threatening Qxg5.} Bg6 {[%emt 0:01:57] [#]} 23. h4 {[%emt 0:00:02]} (23. Rce1 $1 $18 Qxf4 24. Rxf4) 23... Qxf4 $16 {[%emt 0:01:24]} 24. Rxf4 $40 {[%emt 0:00:03][%cal Oh4h5][%mdl 128] Threatens to win with h5! White wants a kill.} h5 $2 {[%emt 0:01:37][%mdl 8192]} (24... Rf8 $16 {was necessary.}) 25. Rcf1 $18 {[%emt 0:00:34]} Rf8 {[%emt 0:00:19]} 26. R1f3 {[%emt 0:00:03]} Nb7 {[%emt 0:01:59] [#]} 27. Rg3 $1 {[%emt 0:00:11]} Bxf7 {[%emt 0:01:02]} 28. Nxf7 {[%emt 0:00:37] aiming for Rf6.} ({Less strong is} 28. Rxf7+ Rxf7 29. Nxf7 Nd8 $18) 28... Nd6 {[%emt 0:00:21]} 29. Ng5+ {[%emt 0:00:52]} Kh6 {[%emt 0:00:20]} 30. Rgf3 {[%emt 0:01:24]} (30. Nxe6 Rxf4 31. Nxf4 Rf8 $18) 30... Rxf4 {[%emt 0:00:21]} 31. Rxf4 {[%emt 0:00:03][%mdl 4096] Endgame. KRN-KRN} Re8 {[%emt 0:01:01]} (31... Nb5 $142 32. Rf3 (32. Nxe6 Nxc3 33. Kf2 Nxa2 $18) 32... e5) 32. Rf6+ {[%emt 0:00:08]} Kg7 {[%emt 0:00:03]} 33. e5 {[%emt 0:00:02]} Nb5 {[%emt 0:00:29]} 34. Nxe6+ {[%emt 0:00:08]} Kg8 {[%emt 0:00:22]} 35. c4 {[%emt 0:01:16]} Na3 {[%emt 0:00:34]} 36. Nxc7 {[%emt 0:00:47]} Rc8 {[%emt 0:00:15]} 37. Nd5 {[%emt 0:02:42]} Rxc4 {[%emt 0:00:50]} 38. e6 {[%emt 0:00:03] Rf7 would kill now.} Nb5 {[%emt 0:00:40]} 39. e7 {[%emt 0:00:18]} (39. Rf7 $142 Rc1+ 40. Kf2 Kh8 41. Nf6 Rc2+ 42. Kg1 Rc1+ 43. Kh2 Rc7 44. e7 (44. Nxh5 a6 $18) 44... Rxe7 45. Rxe7 Nxd4 46. Rh7#) 39... Rc8 {[%emt 0:00:06] [#]} 40. Rc6 $3 {[%emt 0:00:00][%mdl 512]} Rb8 {[%emt 0:00:00] [#]} 41. e8=Q+ $1 {[%emt 0:00:10]} Rxe8 {[%emt 0:00:51]} 42. Nf6+ {[%emt 0:00:03]} Kf7 {[%emt 0:00:06]} 43. Nxe8 {[%emt 0:00:03]} ({Weaker is} 43. Nxh5 Re4 $16) 43... Kxe8 {[%emt 0:00:05]} 44. d5 {[%emt 0:00:07]} Kd7 {[%emt 0:00:41] [#]} 45. g4 $1 {[%emt 0:00:14]} hxg4 {[%emt 0:00:06]} (45... Nd4 46. gxh5) 46. h5 {[%emt 0:00:02] Weighted Error Value: White=0.28 (precise) /Black=0.68.  Loses game:     	---       	Black=1      Mistake:       	White=2     	Black=4      Inaccurate:     	---       	Black=5      OK:         	White=11    	Black=12     Best:        	White=2     	Black=2      Strong:       	White=3     	---} 1-0

[Event "14th Karen Asrian Memorial 2024"]
[Site "Yerevan"]
[Date "2024.04.25"]
[Round "2.5"]
[White "Sukiasyan, Vahe A."]
[Black "Davtyan, Artur"]
[Result "0-1"]
[ECO "D45"]
[WhiteElo "2258"]
[BlackElo "2474"]
[Annotator "TA"]
[PlyCount "82"]
[EventDate "2024.04.24"]
[EventType "swiss"]
[EventCountry "ARM"]
[SourceTitle "playchess.com"]
[Source "ChessBase"]
[SourceQuality "1"]
[TimeControl "40/5400+30:1800+30"]

{[%evp 10,82,23,6,7,0,4,0,18,12,12,0,6,0,0,0,1,0,13,0,0,6,3,0,13,7,33,33,32,36,39,51,41,16,25,0,37,31,41,44,38,51,228,228,224,220,219,222,467,0,0,0,0,0,0,-179,-177,-241,-243,-405,-414,-397,-375,-483,-463,-746,-747,-833,-822,-890,-894,-791,-790,-1832,-1712]} 1. d4 {[%emt 0:00:09]} d5 {[%emt 0:03:54]} 2. c4 {[%emt 0:00:16]} e6 {[%emt 0:00:06]} 3. Nf3 {[%emt 0:00:12]} c6 {[%emt 0:00:17]} 4. e3 {[%emt 0:00:09]} Nf6 {[%emt 0:00:05]} 5. Nc3 {[%emt 0:00:08]} Nbd7 {[%emt 0:00:04]} 6. Be2 {[%emt 0:00:15]} b6 {[%emt 0:00:50]} 7. O-O {[%emt 0:00:28]} Bb7 {[%emt 0:00:04]} 8. b3 {[%emt 0:00:13]} Be7 {[%emt 0:00:39] The position is equal.} 9. Bb2 {[%emt 0:00:29]} O-O {[%emt 0:00:06]} 10. a4 {[%emt 0:00:13][%cal Oa4a5]} Bb4 {[%emt 0:01:02]} 11. Na2 {[%emt 0:05:42]} Bd6 {[%emt 0:00:43]} 12. Nc3 {[%emt 0:01:54]} a5 {[%emt 0:06:03]} 13. Qc2 {[%emt 0:00:35]} Bb4 {[%emt 0:00:57]} 14. Rad1 {[%emt 0:07:42]} Rc8 {[%emt 0:00:24]} 15. Bd3 {[%emt 0:04:49]} c5 {[%emt 0:02:35]} 16. Ne5 {[%emt 0:04:04]} cxd4 {[%emt 0:11:04]} 17. exd4 {[%emt 0:00:23]} h6 {[%emt 0:03:45]} 18. Nb5 {[%emt 0:17:49]} Nxe5 {[%emt 0:06:16]} 19. dxe5 {[%emt 0:00:11]} Nd7 {[%emt 0:00:19]} 20. Qe2 {[%emt 0:03:41]} Qe7 {[%emt 0:00:22]} 21. Bc2 {[%emt 0:03:52]} (21. Nd6 {keeps more tension.} Bxd6 22. exd6 Qxd6 23. Qg4) 21... Rfd8 {[%emt 0:05:43]} 22. f4 {[%emt 0:08:17][%cal Bf2f4,Bf4f5,Bf5f6][%mdl 32]} Nf8 {[%emt 0:15:47] [#]} 23. Nd6 $1 {[%emt 0:14:34] Hoping for f5.} Bc5+ {[%emt 0:13:42]} 24. Kh1 {[%emt 0:01:16]} Bxd6 {[%emt 0:00:28]} 25. exd6 {[%emt 0:00:05]} Qd7 {[%emt 0:05:22]} (25... Rxd6 $14 26. Ba3 Nd7) 26. f5 $1 $18 {[%emt 0:06:31][%cal Ob2g7] Strongly threatening Bxg7!} dxc4 {[%emt 0:07:40]} 27. Qg4 {[%emt 0:07:51][%csl Gb2][%cal Rg4g7]} c3 {[%emt 0:02:18]} 28. f6 $1 {[%emt 0:01:08][%csl Gf6][%cal Rg4g7]} g6 {[%emt 0:09:12]} (28... Ng6 29. Ba3 Bc6) 29. Bc1 $2 {[%emt 0:04:43]} ({White should play} 29. Qh4 $18 {[%cal Oh4h6] White wants to mate with Qxh6!} Qc6 (29... cxb2 30. Qxh6 Bxg2+ 31. Kg1 Bxf1 32. Qg7#) 30. Rf3 Qxf3 (30... cxb2 31. Qxh6 Qxc2 32. Qg7#) 31. gxf3 Bxf3+ (31... cxb2 32. Qxh6 Bxf3+ 33. Kg1 Bxd1 34. Qg7#) 32. Kg1) 29... Rc5 $11 {[%emt 0:00:04]} 30. Bxh6 {[%emt 0:02:00]} Rh5 {[%emt 0:00:01] Dancing on a razor blade.} 31. Bxf8 {[%emt 0:02:17]} Kxf8 {[%emt 0:00:10]} 32. Rf4 $2 {[%emt 0:02:13]} (32. Rd3 $1 $11) 32... Bd5 $36 {[%emt 0:05:18][%mdl 2048] Black has strong initiative.} 33. Rdf1 {[%emt 0:01:50] [#]} (33. Kg1 $142) 33... e5 $1 {[%emt 0:00:32]} (33... Qxd6 34. Bxg6 fxg6 35. Qxg6 Bxg2+ (35... Rf5 $2 36. Qg7+ Ke8 37. f7+ Kd7 38. f8=Q+ $18) 36. Qxg2 $11) 34. Rf5 {[%emt 0:00:43]} (34. Qxd7 {was forced.} Rxd7 35. Rg4) 34... Rxf5 {[%emt 0:00:59]} (34... gxf5 35. Qg7+ Ke8 36. Qg8#) 35. Bxf5 {[%emt 0:00:18] White threatens Qh4 and mate.} Qxd6 {[%emt 0:00:04]} 36. Qh4 {[%emt 0:00:52][%cal Rh4h8] [#]} Ke8 $1 {[%emt 0:00:17] Active counter play! Black is clearly winning.} (36... gxf5 37. Qh8#) (36... Kg8 $2 37. Qg5 Kf8 (37... Bxb3 38. Bxg6 Kf8 39. Bf5 $11) 38. Bc2 $19) 37. Bg4 {[%emt 0:00:30]} (37. Bc2 $142 Be6 38. Qe1) 37... c2 {[%emt 0:00:12]} (37... Bxb3 38. Qh8+ Qf8 39. Qh3 Bxa4 40. Qxc3 $17) 38. Re1 {[%emt 0:00:34]} Be6 {[%emt 0:00:44]} 39. Be2 {[%emt 0:00:03]} Kd7 {[%emt 0:00:20][%cal Od6d2] White must now prevent ...Qd2!} (39... Bxb3 40. Bb5+ Rd7 41. Qh8+ (41. Bxd7+ $2 {too greedy.} Kxd7 42. Qh3+ Qe6 $19) 41... Qf8 42. Bxd7+ Kxd7 43. Qxf8 Be6 44. Rc1 (44. Rxe5 $2 c1=Q+)) 40. Qe4 {[%emt 0:00:00]} Rc8 {[%emt 0:00:00]} 41. Ba6 {[%emt 0:06:30]} c1=Q {[%emt 0:02:39] Weighted Error Value: White=0.77/Black=0.24 (precise) .  Loses game:     	White=1     	Black=1      Missed win:     	White=1     	---        Mistake:       	White=3     	Black=1      Inaccurate:     	---       	Black=2      OK:         	White=6     	Black=10     Best:        	White=1     	Black=6      Strong:       	White=2     	Black=2} (41... c1=B $2 {loses.} 42. Bxc8+ Kxc8 43. Qa8+ (43. Rxc1+ Kb8 $18) 43... Kd7 44. Rxc1 $18) 0-1

[Event "14th Karen Asrian Memorial 2024"]
[Site "Yerevan"]
[Date "2024.04.25"]
[Round "2.6"]
[White "Sanikidze, Tornike"]
[Black "Ghimoyan, Narek"]
[Result "1/2-1/2"]
[ECO "C01"]
[WhiteElo "2453"]
[BlackElo "2168"]
[Annotator "TA"]
[PlyCount "129"]
[EventDate "2024.04.24"]
[EventType "swiss"]
[EventCountry "ARM"]
[SourceTitle "playchess.com"]
[Source "ChessBase"]
[SourceQuality "1"]
[TimeControl "40/5400+30:1800+30"]

{[%evp 21,129,7,6,-16,7,-10,-14,-7,-12,-9,-12,-15,-15,-12,-13,-6,-13,-34,-33,-24,-32,-43,-58,-72,-64,-64,-70,-68,-68,-113,-54,-106,-69,-64,-64,-64,-69,-61,-62,-159,-157,-241,-212,-170,-105,-108,-124,-118,-122,-115,-114,-277,-148,-134,0,-233,0,-100,0,-109,-97,-90,0,-263,-263,-263,-263,-249,-65,-122,-80,-80,-80,-80,-21,-27,-8,-8,-8,-8,-8,-8,-8,-8,0,0,0,-8,-8,-8,-8,-8,-8,-8,0,0,0,0,0,-8,-8,-50,-50,-50,-50,-50,-50,-50,-50,-50]} 1. e4 {[%emt 0:00:05]} e6 {[%emt 0:00:47]} 2. d4 {[%emt 0:02:31]} d5 {[%emt 0:00:23]} 3. Bd3 {[%emt 0:01:40]} dxe4 {[%emt 0:00:34]} 4. Bxe4 {[%emt 0:00:04]} Nf6 {[%emt 0:00:15]} 5. Bf3 {[%emt 0:00:01]} c5 {[%emt 0:00:27]} 6. Ne2 {[%emt 0:00:05]} Nc6 {[%emt 0:00:08] C01: French: Exchange Variation.} 7. Be3 {[%emt 0:00:04]} e5 {[%emt 0:01:31]} 8. Bxc6+ {[%emt 0:05:02]} bxc6 {[%emt 0:00:12]} 9. c3 {[%emt 0:00:04]} cxd4 {[%emt 0:11:14]} 10. cxd4 {[%emt 0:00:04]} exd4 {[%emt 0:06:11]} 11. Qxd4 {[%emt 0:01:53]} Qxd4 {[%emt 0:01:14]} 12. Nxd4 {[%emt 0:00:48]} Bb4+ $146 {[%emt 0:04:35]} ({Predecessor:} 12... c5 13. Nb5 Rb8 14. N1c3 Bd7 15. a4 Be7 16. Bf4 Rb7 17. Nd6+ Bxd6 18. Bxd6 c4 {1-0 Doluhanova,E (2259)-Smirnova,E (2162) Moscow op-B (Women) 13th 2017 (8)}) 13. Bd2 {[%emt 0:01:24]} Bc5 {[%emt 0:02:13]} 14. Nb3 {[%emt 0:00:26]} Bb6 {[%emt 0:00:28]} 15. O-O {[%emt 0:03:30]} O-O {[%emt 0:04:47]} 16. Bb4 {[%emt 0:00:09]} Re8 {[%emt 0:01:12]} 17. Nc3 {[%emt 0:00:02]} Ne4 {[%emt 0:05:13]} 18. Nxe4 {[%emt 0:05:15]} Rxe4 {[%emt 0:00:08]} 19. a3 {[%emt 0:00:41]} Be6 {[%emt 0:09:22]} 20. Nc5 {[%emt 0:01:28]} Re2 {[%emt 0:06:35]} 21. Nxe6 {[%emt 0:04:21]} fxe6 {[%emt 0:02:13]} 22. Rab1 {[%emt 0:03:19]} a5 {[%emt 0:06:58]} 23. Bd6 {[%emt 0:00:13]} Rd8 {[%emt 0:02:43]} 24. Bg3 {[%emt 0:00:01]} Rdd2 {[%emt 0:01:15]} 25. b3 {[%emt 0:01:46]} Rb2 {[%emt 0:02:37]} (25... Ra2 $1 $17 26. a4 Bd4) 26. h4 {[%emt 0:02:32]} (26. b4 $15) 26... Bxf2+ {[%emt 0:00:48]} 27. Bxf2 {[%emt 0:00:05]} Rxf2 {[%emt 0:00:09]} 28. Rxb2 {[%emt 0:00:18]} Rxb2 {[%emt 0:00:06]} 29. Rf3 {[%emt 0:00:32]} Rc2 {[%emt 0:01:48]} 30. a4 {[%emt 0:00:48]} ({Better is} 30. h5 $15) 30... c5 $17 {[%emt 0:01:17]} 31. h5 {[%emt 0:06:28]} (31. g4 $17) 31... h6 {[%emt 0:02:43]} 32. Re3 {[%emt 0:02:39]} Kf7 {[%emt 0:06:40]} (32... c4 $1 $19 {...cxb3 would now be deadly.} 33. bxc4 Rc1+ (33... Rxc4 34. Rxe6 Rxa4 35. Ra6 $15) 34. Kf2 Rxc4 35. Rxe6 Kf7 (35... Rxa4 36. Kf3 $11)) 33. Rf3+ $17 {[%emt 0:00:01]} Ke7 {[%emt 0:01:06]} 34. Rg3 {[%emt 0:00:01]} Kf6 {[%emt 0:04:03]} 35. Rf3+ {[%emt 0:00:01]} Ke5 {[%emt 0:00:56]} 36. Re3+ $2 {[%emt 0:04:23]} (36. Rg3 $17 {might work better.}) 36... Kf5 {[%emt 0:03:18]} ({Black should play} 36... Kd4 $1 $19 {[%cal Rd4e3]} 37. Rxe6 Rb2 38. Rd6+ Kc3) 37. Rf3+ {[%emt 0:00:28]} Ke5 {[%emt 0:02:30]} (37... Ke4 $17 38. Rg3 e5) 38. Re3+ $1 $19 {[%emt 0:00:21] [#]} Kf6 {[%emt 0:00:44]} (38... Kd4 $1 $19 {[%cal Rd4e3] has better winning chances.} 39. Rxe6 Rb2 40. Rd6+ Kc3) 39. Rf3+ $1 $17 {[%emt 0:00:08]} Ke7 {[%emt 0:00:05]} 40. Rg3 $1 {[%emt 0:00:00]} Kf8 {[%emt 0:00:00]} 41. Rf3+ {[%emt 0:00:11] [#]} Kg8 $2 {[%emt 0:07:18]} (41... Ke8 $1 $17 42. Rg3 Kf8 43. Rf3+ Kg8) 42. Re3 $19 {[%emt 0:02:58]} c4 {[%emt 0:02:03]} 43. bxc4 {[%emt 0:00:08]} Rxc4 {[%emt 0:00:06]} 44. Rxe6 {[%emt 0:00:03]} Rc5 $2 {[%emt 0:12:38]} (44... Rxa4 $19 {Hoping for ...Ra1+.} 45. Ra6 Kf7) 45. g3 {[%emt 0:49:15]} (45. Ra6 $15) 45... Rxh5 {[%emt 0:00:34]} 46. Kg2 {[%emt 0:00:03]} Rc5 {[%emt 0:01:24]} 47. Ra6 {[%emt 0:00:06]} Kh7 {[%emt 0:00:11]} (47... Kf7 $17) 48. Kh3 $11 {[%emt 0:04:30]} h5 {[%emt 0:00:53]} 49. g4 $1 {[%emt 0:03:55]} hxg4+ {[%emt 0:01:28]} 50. Kh4 {[%emt 0:00:01]} g6 {[%emt 0:01:49]} 51. Kxg4 {[%emt 0:14:54]} Kh6 {[%emt 0:00:35]} 52. Kf3 $1 {[%emt 0:01:22]} Kg5 {[%emt 0:00:37]} 53. Ke3 {[%emt 0:00:58]} Rf5 {[%emt 0:01:18]} 54. Rb6 {[%emt 0:01:45]} Kh5 {[%emt 0:01:30]} 55. Ke4 {[%emt 0:11:13]} Rg5 {[%emt 0:00:49]} 56. Kf3 {[%emt 0:00:04]} Kh4 {[%emt 0:01:30]} 57. Rb5 {[%emt 0:00:16]} Rg3+ {[%emt 0:02:58]} 58. Kf2 {[%emt 0:00:08]} g5 {[%emt 0:04:00]} 59. Rxa5 {[%emt 0:00:08]} Ra3 {[%emt 0:00:05]} 60. Kg1 {[%emt 0:01:59]} g4 {[%emt 0:00:25]} 61. Rb5 {[%emt 0:00:02]} Kh3 {[%emt 0:01:02]} 62. Rb1 $1 {[%emt 0:00:10]} Rxa4 {[%emt 0:00:07]} 63. Rb3+ {[%emt 0:00:05]} g3 {[%emt 0:00:05]} 64. Rb1 {[%emt 0:00:01]} Ra3 {[%emt 0:01:01]} 65. Rc1 {[%emt 0:00:07]} 1/2-1/2

[Event "14th Karen Asrian Memorial 2024"]
[Site "Yerevan"]
[Date "2024.04.25"]
[Round "2.7"]
[White "Baghdasaryan, Vahe"]
[Black "Shahinyan, David"]
[Result "0-1"]
[ECO "C41"]
[WhiteElo "2242"]
[BlackElo "2441"]
[Annotator "TA"]
[PlyCount "82"]
[EventDate "2024.04.24"]
[EventType "swiss"]
[EventCountry "ARM"]
[SourceTitle "playchess.com"]
[Source "ChessBase"]
[SourceQuality "1"]
[TimeControl "40/5400+30:1800+30"]

{[%evp 14,82,40,41,33,28,47,22,27,26,40,2,32,25,31,43,21,14,75,82,66,50,62,0,4,0,0,0,0,0,0,-335,-328,-387,-386,-397,-389,-402,-345,-567,-575,-521,-560,-565,-558,-537,-442,-456,-473,-448,-375,-445,-458,-584,-558,-868,-513,-559,-559,-558,-568,-733,-705,-820,-483,-747,-732,-1001,-835,-29988,-550]} 1. e4 {[%emt 0:06:55]} d6 {[%emt 0:00:17]} 2. d4 {[%emt 0:00:15]} Nf6 {[%emt 0:00:07]} 3. Nc3 {[%emt 0:00:04]} e5 {[%emt 0:00:04]} 4. Nf3 {[%emt 0:00:25]} Nbd7 {[%emt 0:00:05][%cal Bb8d7,Bd7e5,Be5g6][%mdl 32]} 5. Bc4 {[%emt 0:00:28]} Be7 {[%emt 0:00:04]} 6. O-O {[%emt 0:00:25]} O-O {[%emt 0:00:07]} 7. a4 {[%emt 0:01:03]} c6 {[%emt 0:00:06]} 8. Re1 {[%emt 0:02:09]} exd4 {[%emt 0:00:13]} 9. Nxd4 {[%emt 0:00:31]} Ne5 {[%emt 0:00:09]} 10. Ba2 {[%emt 0:00:29]} Re8 {[%emt 0:00:09] The position is equal.} 11. h3 {[%emt 0:01:31]} Ng6 {[%emt 0:00:16]} 12. f4 {[%emt 0:00:57][%cal Bf2f4,Bf4f5][%mdl 32]} Bd7 {[%emt 0:00:09]} (12... d5 $5) 13. Kh1 {[%emt 0:03:13]} Qc7 {[%emt 0:07:32]} 14. f5 {[%emt 0:06:53]} Ne5 {[%emt 0:01:49]} 15. Nf3 {[%emt 0:00:12]} h6 {[%emt 0:11:03]} (15... Nxf3 $11 {keeps the balance.} 16. Qxf3 b5) 16. Nxe5 $16 {[%emt 0:11:06]} dxe5 {[%emt 0:00:04]} 17. Re3 {[%emt 0:01:58]} Red8 {[%emt 0:03:39][%cal Od7f5]} 18. Rg3 {[%emt 0:04:10]} (18. Qe2 $1 $14) 18... Kf8 {[%emt 0:02:40][%cal Od7e6] [#]} (18... Bxf5 $2 19. Qf3 $18) 19. Bxh6 $1 {[%emt 0:22:44]} gxh6 {[%emt 0:02:43]} 20. Qd2 {[%emt 0:04:10]} Ng8 {[%emt 0:19:41] Strongly threatening ...Be8.} 21. Rf1 {[%emt 0:00:56][%cal Og3g8] aiming for Rxg8+!} Be8 {[%emt 0:14:07]} (21... Qd6 $5 22. Rd3 $8 Qc7 $11) 22. Qe2 {[%emt 0:10:50][%mdl 8192] Black continues to play with concentration.} (22. Rxg8+ $1 $11 Kxg8 23. Qxh6) 22... Rd6 $19 {[%emt 0:07:02]} 23. Nd1 {[%emt 0:02:11]} Bg5 {[%emt 0:02:59]} 24. Nf2 {[%emt 0:07:42]} Nf6 {[%emt 0:02:57]} 25. Ng4 {[%emt 0:01:21]} Rd2 {[%emt 0:03:33]} 26. Qf3 {[%emt 0:05:14]} (26. Qxd2 Bxd2 27. Nxf6) 26... Nh5 {[%emt 0:03:09]} (26... Rxc2 27. Nxf6 Bxf6 28. Qd3 $14) 27. h4 {[%emt 0:00:11]} Nxg3+ {[%emt 0:03:42]} 28. Qxg3 {[%emt 0:00:01]} Bf4 {[%emt 0:00:05]} 29. Qf3 {[%emt 0:02:32]} Qd6 {[%emt 0:03:29]} 30. g3 {[%emt 0:00:45]} h5 {[%emt 0:00:53]} 31. Nh2 {[%emt 0:01:52]} Bh6 {[%emt 0:02:39]} 32. Qxh5 {[%emt 0:01:20]} Bg7 {[%emt 0:02:43][%cal Oa8d8]} (32... Rxc2 33. f6 Qd2 34. Rf2 Qc1+ (34... Qxf2 35. Qxh6+ Kg8 36. Qg7#) (34... Qe1+ 35. Nf1 $15) 35. Rf1 $17) 33. Qf3 {[%emt 0:01:28]} Rd8 {[%emt 0:01:02]} 34. g4 {[%emt 0:00:44]} Rd1 {[%emt 0:00:23]} 35. g5 {[%emt 0:00:03]} Rxf1+ {[%emt 0:00:37]} 36. Nxf1 {[%emt 0:00:02]} Qd1 {[%emt 0:00:05]} 37. Qg2 {[%emt 0:00:30]} Qh5 {[%emt 0:01:13]} 38. Qg3 {[%emt 0:00:19]} Rd1 {[%emt 0:00:15]} 39. Kg1 {[%emt 0:00:06]} (39. Bc4 $142 Rd4 40. Bd3) 39... Qe2 {[%emt 0:00:19][%csl LRc2,LRe4,LRf1]} 40. Qh3 {[%emt 0:00:00]} Kg8 {[%emt 0:00:00][%cal Og7f8] [#] ( -> ...Bf8!)} 41. f6 {[%emt 0:00:21]} Bd7 {[%emt 0:01:11] Weighted Error Value: White=0.50/Black=0.33.  Loses game:     	White=1     	---        Mistake:       	White=2     	Black=1      Inaccurate:     	White=3     	Black=2      OK:         	White=6     	Black=14     Best:        	White=1     	Black=1} (41... Bf8 $142 42. b4 Bxb4 (42... Qxe4 $2 43. c3 $19) 43. Bc4 Bc5+ (43... Qxc4 $2 44. Kh2 $19) 44. Kh1 Qxc4 45. Kh2 Bd7 (45... Rxf1 $2 46. Qd3 $19) (45... Qxc2+ {leads to mate.} 46. Qg2 Qc1 47. g6 Rxf1 48. gxf7+ Kxf7 49. Qg7+ Ke6 50. Qg8+ Kd6 51. Qf8+ Kc7 52. Qg7+ Bd7 53. Qxd7+ Kxd7 54. h5 Qf4+ 55. Kh3 Rh1+ 56. Kg2 Rh2#) 46. Qf3 Rxf1 47. Qd3 Rf2+ (47... Qxa4 {is a self mate.} 48. g6 Rf2+ 49. Kg3 Qa1 50. gxf7+ Kh7 51. f8=N+ Kh6 52. Qe3+ Bxe3 53. Nxd7 Qg1+ 54. Kh3 Rh2#) 48. Kg3 Qe6 (48... Qxc2 49. Qxc2 Rxc2 50. Kf3 Bh3 51. h5 Rf2+ 52. Kg3 Bf1 53. h6 Rf4 54. Kh2 Bf2 55. h7+ Kh8 56. Kh1 Rh4#) (48... Qxd3+ $2 49. cxd3 b6 50. h5 $19) 49. Qxd7 Qxd7 50. g6 Qd2 (50... Rxf6 {gets mated.} 51. h5 Bf2+ 52. Kh2 Rf3 53. gxf7+ Kxf7 54. h6 Qh3#) 51. gxf7+ Kxf7 52. Kh3 Qf4 53. h5 Rh2#) 0-1